fUST/lending_fUST_20250723
["ID","MTS","AMOUNT","RATE_DAILY","PERIOD"]
[374139934,1753228253420,-460.0,0.00021451,2]
[374139935,1753228253430,-896.25,0.00021451,2]
[374139936,1753228253439,-514.65,0.00021451,2]
[374139937,1753228253448,-663.37,0.00021451,2]
[374139938,1753228253458,-460.0,0.00021452,2]
[374139939,1753228253467,-460.0,0.00021454,2]
[374139940,1753228253476,-460.0,0.00021454,2]
[374139941,1753228253485,-460.0,0.00021454,2]
[374139942,1753228253494,-460.0,0.00021454,2]
[374139943,1753228253503,-460.0,0.00021454,2]
[374139944,1753228253512,-460.0,0.00021454,2]
[374139945,1753228253521,-460.0,0.00021454,2]
[374139946,1753228253530,-460.0,0.00021454,2]
[374139947,1753228253539,-460.0,0.00021454,2]
[374139948,1753228253548,-460.0,0.00021454,2]
[374139949,1753228253557,-526.38,0.00021454,2]
[374139950,1753228253566,-622.44,0.00021454,2]
[374139951,1753228253576,-460.0,0.00021454,2]
[374139952,1753228253586,-180.46624121,0.00021454,2]
[374139953,1753228253595,-460.0,0.00021454,2]
[374139954,1753228253604,-196.94,0.00021454,2]
[374139955,1753228253616,-539.5,0.00021454,2]
[374139956,1753228253727,-176.25087525,0.00021454,2]
[374139957,1753228253747,-460.0,0.00021454,2]
[374139958,1753228253756,-460.0,0.00021454,2]
[374139959,1753228253765,-460.0,0.00021454,2]
[374139960,1753228253774,-460.0,0.00021454,2]
[374139961,1753228253784,-2195.3,0.00021455,2]
[374139962,1753228253793,-1239.57,0.00021455,2]
[374139963,1753228253803,-1658.01,0.00021455,2]
[374139964,1753228253812,-460.0,0.00021455,2]
[374139965,1753228253821,-2253.65,0.00021455,2]
[374139966,1753228253830,-1340.59,0.00021455,2]
[374139967,1753228253839,-1293.49,0.00021455,2]
[374139968,1753228253848,-3202.65456407,0.00021486,5]
[374139969,1753228253857,-1157.88,0.00021722,2]
[374139970,1753228253867,-1954.5,0.00021723,2]
[374139971,1753228253876,-1501.49,0.00021723,2]
[374139972,1753228253885,-1407.56,0.00021723,2]
[374139973,1753228253894,-536.89,0.00021723,2]
[374139974,1753228253904,-3206.05,0.00021725,2]
[374139975,1753228253914,-1605.14,0.00021725,2]
[374139976,1753228253924,-460.0,0.00021725,2]
[374139977,1753228253933,-460.95,0.00021725,2]
[374139978,1753228253942,-460.0,0.00021725,2]
[374139979,1753228253952,-896.25,0.00021725,2]
[374139980,1753228253962,-514.65,0.00021725,2]
[374139981,1753228253971,-663.37,0.00021725,2]
[374139982,1753228253980,-460.0,0.00021726,2]
[374139983,1753228253990,-460.0,0.00021728,2]
[374139984,1753228253999,-460.0,0.00021728,2]
[374139985,1753228254009,-308.59290708,0.00021728,2]
[374139986,1753228254018,-460.0,0.00021728,2]
[374139987,1753228254028,-492.86,0.00021728,2]
[374139988,1753228254038,-460.0,0.00021728,2]
[374139989,1753228254047,-460.0,0.00021728,2]
[374139990,1753228254057,-460.0,0.00021728,2]
[374139991,1753228254067,-460.0,0.00021728,2]
[374139992,1753228254076,-460.0,0.00021728,2]
[374139993,1753228254085,-526.38,0.00021728,2]
[374139994,1753228254095,-622.44,0.00021728,2]
[374139995,1753228254104,-460.0,0.00021728,2]
[374139996,1753228254114,-460.0,0.00021728,2]
[374139997,1753228254123,-539.5,0.00021728,2]
[374139998,1753228254132,-460.0,0.00021728,2]
[374139999,1753228254142,-460.0,0.00021728,2]
[374140000,1753228254151,-460.0,0.00021728,2]
[374140001,1753228254160,-460.0,0.00021728,2]
[374140002,1753228254168,-2195.3,0.00021729,2]
[374140003,1753228254178,-1239.57,0.00021729,2]
[374140004,1753228254187,-1658.01,0.00021729,2]
[374140005,1753228254198,-460.0,0.00021729,2]
[374140006,1753228254208,-2253.65,0.00021729,2]
[374140007,1753228254218,-1340.59,0.00021729,2]
[374140008,1753228254230,-1293.49,0.00021729,2]
[374140009,1753228254240,-3202.65456407,0.00021762,5]
[374140010,1753228254251,-178.749928,0.00021799,2]
[374140011,1753228254263,-732.0,0.0002189,2]
[374140012,1753228254273,-170.6692493,0.000219,2]
[374140013,1753228254283,-200.0,0.00021918,2]
[374140014,1753228254292,-1157.88,0.00021996,2]
[374140015,1753228254302,-1954.5,0.00021997,2]
[374140016,1753228254312,-1501.49,0.00021997,2]
[374140017,1753228254324,-1407.56,0.00021997,2]
[374140018,1753228254334,-536.89,0.00021997,2]
[374140019,1753228254343,-3206.05,0.00021999,2]
[374140020,1753228254354,-1605.14,0.00021999,2]
[374140021,1753228254364,-460.0,0.00021999,2]
[374140022,1753228254374,-460.95,0.00021999,2]
[374140023,1753228254384,-433.89,0.00021999,2]
[374140024,1753228254394,-896.25,0.00021999,2]
[374140025,1753228254403,-514.65,0.00021999,2]
[374140026,1753228254412,-663.37,0.00021999,2]
[374140027,1753228254421,-2641.97,0.00022,7]
[374140028,1753228254430,-312.54,0.00022,7]
[374140029,1753228254439,-165.53,0.00022,7]
[374140030,1753228254449,-14832.41,0.00022,2]
[374140031,1753228254458,-460.0,0.00022,2]
[374140032,1753228254467,-484.3587798,0.00022002,2]
[374140033,1753228254476,-460.0,0.00022002,2]
[374140034,1753228254486,-460.0,0.00022002,2]
[374140035,1753228254495,-439.77,0.00022002,2]
[374140036,1753228254505,-460.0,0.00022002,2]
[374140037,1753228254515,-460.0,0.00022002,2]
[374140038,1753228254526,-226.9329834,0.00022002,2]
[374140039,1753228254535,-460.0,0.00022002,2]
[374140040,1753228254545,-526.38,0.00022002,2]
[374140041,1753228254555,-622.44,0.00022002,2]
[374140042,1753228254565,-460.0,0.00022002,2]
[374140043,1753228254574,-460.0,0.00022002,2]
[374140044,1753228254583,-539.5,0.00022002,2]
[374140045,1753228254592,-460.0,0.00022002,2]
[374140046,1753228254601,-460.0,0.00022002,2]
[374140047,1753228254611,-329.47684678,0.00022002,2]
[374140048,1753228254622,-460.0,0.00022002,2]
[374140049,1753228254631,-2195.3,0.00022003,2]
[374140050,1753228254641,-1239.57,0.00022003,2]
[374140051,1753228254650,-1658.01,0.00022003,2]
[374140052,1753228254661,-460.0,0.00022003,2]
[374140053,1753228254671,-2253.65,0.00022003,2]
[374140054,1753228254682,-1340.59,0.00022003,2]
[374140055,1753228254692,-1293.49,0.00022003,2]
[374140056,1753228254701,-3202.65456407,0.00022038,6]
[374140057,1753228254710,-1157.88,0.0002227,2]
[374140058,1753228254719,-1954.5,0.00022271,2]
[374140059,1753228254729,-1501.49,0.00022271,2]
[374140060,1753228254742,-1407.56,0.00022271,2]
[374140061,1753228254752,-536.89,0.00022271,2]
[374140062,1753228254761,-3206.05,0.00022273,2]
[374140063,1753228254771,-1605.14,0.00022273,2]
[374140064,1753228254781,-430.51076356,0.00022273,2]
[374140065,1753228254790,-460.95,0.00022273,2]
[374140066,1753228254800,-896.25,0.00022273,2]
[374140067,1753228254810,-514.65,0.00022273,2]
[374140068,1753228254819,-663.37,0.00022273,2]
[374140069,1753228254830,-312.9,0.00022274,2]
[374140070,1753228254840,-460.0,0.00022276,2]
[374140071,1753228254850,-460.0,0.00022276,2]
[374140072,1753228254859,-460.0,0.00022276,2]
[374140073,1753228254870,-460.0,0.00022276,2]
[374140074,1753228254880,-460.0,0.00022276,2]
[374140075,1753228254890,-526.38,0.00022276,2]
[374140076,1753228254900,-622.44,0.00022276,2]
[374140077,1753228254910,-460.0,0.00022276,2]
[374140078,1753228254920,-460.0,0.00022276,2]
[374140079,1753228254929,-539.5,0.00022276,2]
[374140080,1753228254940,-460.0,0.00022276,2]
[374140081,1753228254950,-460.0,0.00022276,2]
[374140082,1753228254960,-460.0,0.00022276,2]
[374140083,1753228254970,-2195.3,0.00022277,2]
[374140084,1753228254980,-1239.57,0.00022277,2]
[374140085,1753228254990,-1658.01,0.00022277,2]
[374140086,1753228254999,-430.51,0.00022277,2]
[374140087,1753228255009,-2253.65,0.00022277,2]
[374140088,1753228255019,-1340.59,0.00022277,2]
[374140089,1753228255034,-1293.49,0.00022277,2]
[374140090,1753228255044,-151.0,0.000223,9]
[374140091,1753228255054,-3202.65456407,0.00022314,7]
[374140092,1753228255064,-577.86,0.00022415,5]
[374140093,1753228255074,-586.41,0.00022415,7]
[374140094,1753228255083,-523.57,0.00022415,7]
[374140095,1753228255093,-575.92,0.00022415,6]
[374140096,1753228255103,-1559.9,0.00022465,2]
[374140097,1753228255112,-577.86,0.00022515,6]
[374140098,1753228255122,-586.41,0.00022515,6]
[374140099,1753228255132,-575.92,0.00022515,6]
[374140100,1753228255142,-1157.88,0.00022544,2]
[374140101,1753228255151,-1954.5,0.00022545,2]
[374140102,1753228255161,-1501.49,0.00022545,2]
[374140103,1753228255170,-1407.56,0.00022545,2]
[374140104,1753228255180,-536.89,0.00022545,2]
[374140105,1753228255189,-3206.05,0.00022547,2]
[374140106,1753228255200,-1605.14,0.00022547,2]
[374140107,1753228255209,-460.95,0.00022547,2]
[374140108,1753228255219,-896.25,0.00022547,2]
[374140109,1753228255228,-514.65,0.00022547,2]
[374140110,1753228255321,-663.37,0.00022547,2]
[374140111,1753228255331,-460.0,0.0002255,2]
[374140112,1753228255341,-254.17,0.0002255,2]
[374140113,1753228255351,-460.0,0.0002255,2]
[374140114,1753228255361,-460.0,0.0002255,2]
[374140115,1753228255370,-509.71,0.0002255,2]
[374140116,1753228255380,-526.38,0.0002255,2]
[374140117,1753228255389,-622.44,0.0002255,2]
[374140118,1753228255398,-510.98,0.0002255,2]
[374140119,1753228255408,-460.0,0.0002255,2]
[374140120,1753228255417,-539.5,0.0002255,2]
[374140121,1753228255427,-460.0,0.0002255,2]
[374140122,1753228255436,-460.0,0.0002255,2]
[374140123,1753228255446,-460.0,0.0002255,2]
[374140124,1753228255455,-151.0,0.00022551,7]
[374140125,1753228255465,-2195.3,0.00022551,2]
[374140126,1753228255479,-1239.57,0.00022551,2]
[374140127,1753228255488,-1658.01,0.00022551,2]
[374140128,1753228255498,-2253.65,0.00022551,2]
[374140129,1753228255508,-1340.59,0.00022551,2]
[374140130,1753228255517,-1293.49,0.00022551,2]
[374140131,1753228255529,-3202.65456407,0.0002259,7]
[374140132,1753228255538,-547.44878007,0.00022603,2]
[374140133,1753228255549,-577.87,0.00022615,3]
[374140134,1753228255558,-586.41,0.00022615,2]
[374140135,1753228255567,-575.92,0.00022615,2]
[374140136,1753228255576,-586.41,0.00022715,5]
[374140137,1753228255586,-575.948,0.00022715,5]
[374140138,1753228255595,-151.0,0.000228,5]
[374140139,1753228255605,-586.432,0.00022815,6]
[374140140,1753228255617,-1157.88,0.00022818,2]
[374140141,1753228255626,-1954.5,0.00022819,2]
[374140142,1753228255638,-1501.49,0.00022819,2]
[374140143,1753228255648,-1407.56,0.00022819,2]
[374140144,1753228255658,-536.89,0.00022819,2]
[374140145,1753228255667,-3206.05,0.00022821,2]
[374140146,1753228255677,-1605.14,0.00022821,2]
[374140147,1753228255686,-460.95,0.00022821,2]
[374140148,1753228255696,-896.25,0.00022821,2]
[374140149,1753228255706,-514.65,0.00022821,2]
[374140150,1753228255715,-663.37,0.00022821,2]
[374140151,1753228255726,-460.0,0.00022824,2]
[374140152,1753228255735,-460.0,0.00022824,2]
[374140153,1753228255746,-460.0,0.00022824,2]
[374140154,1753228255756,-526.38,0.00022824,2]
[374140155,1753228255765,-622.44,0.00022824,2]
[374140156,1753228255775,-460.0,0.00022824,2]
[374140157,1753228255784,-539.5,0.00022824,2]
[374140158,1753228255793,-460.0,0.00022824,2]
[374140159,1753228255803,-460.0,0.00022824,2]
[374140160,1753228255812,-471.92,0.00022824,2]
[374140161,1753228255822,-2195.3,0.00022825,2]
[374140162,1753228255831,-1239.57,0.00022825,2]
[374140163,1753228255840,-1658.01,0.00022825,2]
[374140164,1753228255850,-2253.65,0.00022825,2]
[374140165,1753228255860,-1340.59,0.00022825,2]
[374140166,1753228255869,-1293.49,0.00022825,2]
[374140167,1753228255879,-3202.65456407,0.00022866,8]
[374140168,1753228255889,-3462.41494755,0.0002291,2]
[374140169,1753228255898,-178.749928,0.00022971,2]
[374140170,1753228255908,-160.0,0.00023,2]
[374140171,1753228255918,-1158.05,0.00023092,2]
[374140172,1753228255927,-1954.7065373,0.00023093,2]
[374140173,1753228255937,-1501.62,0.00023093,2]
[374140174,1753228255947,-1407.74,0.00023093,2]
[374140175,1753228255956,-537.02,0.00023093,2]
[374140176,1753228255967,-3206.10430559,0.00023095,2]
[374140177,1753228255976,-1605.18441676,0.00023095,2]
[374140178,1753228255986,-461.13,0.00023095,2]
[374140179,1753228255995,-896.47776115,0.00023095,2]
[374140180,1753228256004,-514.88559762,0.00023095,2]
[374140181,1753228256014,-663.53821254,0.00023095,2]
[374140182,1753228256025,-460.0,0.00023098,2]
[374140183,1753228256035,-460.0,0.00023098,2]
[374140184,1753228256045,-151.86,0.00023098,2]
[374140185,1753228256054,-526.38,0.00023098,2]
[374140186,1753228256063,-622.44,0.00023098,2]
[374140187,1753228256073,-460.0,0.00023098,2]
[374140188,1753228256083,-539.5,0.00023098,2]
[374140189,1753228256092,-460.0,0.00023098,2]
[374140190,1753228256102,-460.0,0.00023098,2]
[374140191,1753228256111,-2195.41,0.00023099,2]
[374140192,1753228256121,-1239.7,0.00023099,2]
[374140193,1753228256132,-1658.16,0.00023099,2]
[374140194,1753228256141,-2253.65,0.00023099,2]
[374140195,1753228256151,-1340.79376025,0.00023099,2]
[374140196,1753228256160,-1293.69,0.00023099,2]
[374140197,1753228256170,-3202.65456407,0.00023141,8]
[374140198,1753228256179,-584.00707441,0.00023372,2]
[374140199,1753228256188,-460.0,0.00023372,2]
[374140200,1753228256198,-526.38,0.00023372,2]
[374140201,1753228256208,-622.44,0.00023372,2]
[374140202,1753228256221,-460.0,0.00023372,2]
[374140203,1753228256232,-539.5,0.00023372,2]
[374140204,1753228256243,-460.0,0.00023372,2]
[374140205,1753228256252,-460.0,0.00023372,2]
[374140206,1753228256261,-648.0,0.00023395,2]
[374140207,1753228256272,-2157.0,0.00023395,2]
[374140208,1753228256283,-968.0,0.00023395,2]
[374140209,1753228256292,-3202.65456407,0.00023417,9]
[374140210,1753228256302,-859.2202502,0.00023418,2]
[374140211,1753228256311,-151.0,0.000236,8]
[374140212,1753228256321,-14832.41,0.000236,2]
[374140213,1753228256331,-460.0,0.00023646,2]
[374140214,1753228256341,-526.38,0.00023646,2]
[374140215,1753228256352,-622.44,0.00023646,2]
[374140216,1753228256362,-281.07,0.00023646,2]
[374140217,1753228256372,-539.5,0.00023646,2]
[374140218,1753228256381,-460.0,0.00023646,2]
[374140219,1753228256390,-460.0,0.00023646,2]
[374140220,1753228256401,-151.0,0.0002369,2]
[374140221,1753228256411,-151.0,0.0002369,2]
[374140222,1753228256421,-151.0,0.0002369,2]
[374140223,1753228256430,-151.0,0.0002369,2]
[374140224,1753228256440,-151.0,0.0002369,2]
[374140225,1753228256449,-151.0,0.0002369,2]
[374140226,1753228256459,-151.0,0.0002369,2]
[374140227,1753228256470,-215.0738,0.0002369,2]
[374140228,1753228256479,-151.0,0.0002369,2]
[374140229,1753228256489,-151.0,0.0002369,2]
[374140230,1753228256500,-151.0,0.0002369,2]
[374140231,1753228256510,-151.0,0.0002369,2]
[374140232,1753228256519,-151.0,0.0002369,2]
[374140233,1753228256533,-151.0,0.0002369,2]
[374140234,1753228256542,-151.0,0.0002369,2]
[374140235,1753228256551,-151.0,0.0002369,2]
[374140236,1753228256563,-151.0,0.0002369,2]
[374140237,1753228256574,-151.0,0.0002369,2]
[374140238,1753228256584,-151.0,0.0002369,2]
[374140239,1753228256593,-151.0,0.0002369,2]
[374140240,1753228256604,-151.0,0.0002369,2]
[374140241,1753228256616,-3202.65456407,0.00023693,9]
[374140242,1753228256625,-1676.35072628,0.000239,2]
[374140243,1753228256635,-460.0,0.0002392,2]
[374140244,1753228256645,-526.38,0.0002392,2]
[374140245,1753228256656,-622.44,0.0002392,2]
[374140246,1753228256665,-539.5,0.0002392,2]
[374140247,1753228256675,-460.0,0.0002392,2]
[374140248,1753228256684,-395.66,0.0002392,2]
[374140249,1753228256696,-3202.65456407,0.00023969,10]
[374140250,1753228256706,-178.749928,0.00024115,3]
[374140251,1753228256716,-178.749928,0.00024142,2]
[374140252,1753228256800,-460.0,0.00024194,2]
[374140253,1753228256812,-526.38,0.00024194,2]
[374140254,1753228256822,-622.44,0.00024194,2]
[374140255,1753228256831,-539.5,0.00024194,2]
[374140256,1753228256841,-460.0,0.00024194,2]
[374140257,1753228256851,-3202.65456407,0.00024245,10]
[374140258,1753228256860,-178.204927,0.00024377,2]
[374140259,1753228256870,-159.8957685,0.00024377,2]
[374140260,1753228256879,-1154.905217,0.00024377,2]
[374140261,1753228256889,-159.8957685,0.00024377,2]
[374140262,1753228256898,-178.204927,0.00024377,2]
[374140263,1753228256908,-159.8957685,0.00024377,2]
[374140264,1753228256917,-178.204927,0.00024377,2]
[374140265,1753228256927,-178.204927,0.00024377,2]
[374140266,1753228256937,-159.8957685,0.00024377,2]
[374140267,1753228256946,-178.204927,0.00024377,2]
[374140268,1753228256955,-159.8957685,0.00024377,2]
[374140269,1753228256965,-356.3750404,0.00024377,2]
[374140270,1753228256975,-319.6289394,0.00024377,2]
[374140271,1753228256985,-178.749928,0.00024395,3]
[374140272,1753228256995,-151.0,0.000244,5]
[374140273,1753228257004,-295.07,0.00024468,2]
[374140274,1753228257014,-526.38,0.00024468,2]
[374140275,1753228257023,-622.44,0.00024468,2]
[374140276,1753228257033,-539.5,0.00024468,2]
[374140277,1753228257043,-460.0,0.00024468,2]
[374140278,1753228257053,-312.54,0.000245,7]
[374140279,1753228257062,-526.07605158,0.000245,7]
[374140280,1753228257072,-3202.65456407,0.00024521,11]
[374140281,1753228257082,-500.0,0.0002455,2]
[374140282,1753228257091,-966.45,0.00024583,2]
[374140283,1753228257100,-165.53,0.000246,7]
[374140284,1753228257110,-174.97645,0.00024621,8]
[374140285,1753228257120,-500.0,0.00024644,2]
[374140286,1753228257130,-500.0,0.00024658,2]
[374140287,1753228257139,-178.749928,0.00024675,3]
[374140288,1753228257148,-683.01807293,0.0002468,4]
[374140289,1753228257158,-178.749928,0.00024693,11]
[374140290,1753228257167,-178.749928,0.0002472,11]
[374140291,1753228257176,-526.38,0.00024742,2]
[374140292,1753228257186,-622.44,0.00024742,2]
[374140293,1753228257196,-539.5,0.00024742,2]
[374140294,1753228257206,-460.0,0.00024742,2]
[374140295,1753228257215,-178.749928,0.00024746,11]
[374140296,1753228257224,-500.0,0.00024749,2]
[374140297,1753228257234,-178.749928,0.00024773,11]
[374140298,1753228257245,-3202.65456407,0.00024797,11]
[374140299,1753228257254,-935.14,0.000248,2]
[374140300,1753228257263,-178.749928,0.000248,11]
[374140301,1753228257272,-550.65288566,0.000248,2]
[374140302,1753228257283,-855.49478504,0.000248,2]
[374140303,1753228257292,-3462.41494755,0.000248,2]
[374140304,1753228257303,-550.65288561,0.00024829,2]
[374140305,1753228257312,-500.0,0.00024835,2]
[374140306,1753228257323,-550.65288561,0.00024857,2]
[374140307,1753228257333,-550.65288561,0.00024886,2]
[374140308,1753228257343,-151.0,0.000249,7]
[374140309,1753228257353,-151.0,0.000249,7]
[374140310,1753228257362,-211272.31259477,0.000249,30]
[374140311,1753228257372,-151.0,0.000249,7]
[374140312,1753228257381,-151.0,0.000249,7]
[374140313,1753228257390,-151.0,0.000249,7]
[374140314,1753228257400,-151.0,0.000249,7]
[374140315,1753228257409,-151.0,0.000249,7]
[374140316,1753228257418,-151.0,0.000249,7]
[374140317,1753228257427,-327778.005841,0.000249,2]
[374140318,1753228257446,-160.994315,0.000249,7]
[374140319,1753228257458,-151.0,0.000249,7]
[374140320,1753228257468,-151.0,0.000249,7]
[374140321,1753228257478,-151.0,0.000249,7]
[374140322,1753228257489,-151.0,0.000249,7]
[374140323,1753228257501,-151.0,0.000249,7]
[374140324,1753228257511,-151.0,0.000249,7]
[374140325,1753228257521,-151.0,0.000249,7]
[374140326,1753228257533,-151.0,0.000249,7]
[374140327,1753228257542,-151.0,0.000249,7]
[374140328,1753228257552,-550.65288561,0.00024915,2]
[374140329,1753228257562,-500.0,0.00024932,2]
[374140330,1753228257572,-9436.3509864,0.00024942,2]
[374140331,1753228257583,-550.65288561,0.00024943,2]
[374140332,1753228257593,-500.0,0.00024947,2]
[374140333,1753228257604,-178.749928,0.00024955,3]
[374140334,1753228257617,-4552.5956502,0.00024955,7]
[374140335,1753228257627,-550.65288561,0.00024972,2]
[374140336,1753228257638,-1990.941146,0.0002498,5]
[374140337,1753228257648,-1000.0,0.00025,5]
[374140338,1753228257658,-526.07605158,0.00025,30]
[374140339,1753228257668,-642.0,0.00025,2]
[374140340,1753228257678,-550.65288561,0.00025001,2]
[374140341,1753228257688,-526.38,0.00025016,2]
[374140342,1753228257699,-622.44,0.00025016,2]
[374140343,1753228257709,-539.5,0.00025016,2]
[374140344,1753228257719,-460.0,0.00025016,2]
[374140345,1753228257728,-1000.0,0.0002502,5]
[374140346,1753228257738,-550.65288561,0.00025029,2]
[374140347,1753228257748,-153.0,0.00025036,2]
[374140348,1753228257758,-153.0,0.00025036,2]
[374140349,1753228257768,-153.0,0.00025036,2]
[374140350,1753228257778,-153.0,0.00025036,2]
[374140351,1753228257787,-153.0,0.00025036,2]
[374140352,1753228257797,-153.0,0.00025036,2]
[374140353,1753228257807,-153.0,0.00025036,2]
[374140354,1753228257817,-153.0,0.00025037,2]
[374140355,1753228257833,-153.0,0.00025037,2]
[374140356,1753228257846,-153.0,0.00025037,2]
[374140357,1753228257856,-153.0,0.00025037,2]
[374140358,1753228257866,-153.0,0.00025037,2]
[374140359,1753228257876,-153.0,0.00025037,2]
[374140360,1753228257886,-153.0,0.00025037,2]
[374140361,1753228257895,-153.0,0.00025037,2]
[374140362,1753228257905,-153.0,0.00025037,2]
[374140363,1753228257915,-153.0,0.00025039,2]
[374140364,1753228257924,-153.0,0.00025039,2]
[374140365,1753228257934,-153.0,0.00025039,2]
[374140366,1753228257943,-153.0,0.00025039,2]
[374140367,1753228257952,-153.0,0.00025039,2]
[374140368,1753228257962,-153.0,0.0002504,2]
[374140369,1753228257972,-153.0,0.0002504,2]
[374140370,1753228257981,-153.0,0.0002504,2]
[374140371,1753228257991,-153.0,0.0002504,2]
[374140372,1753228258000,-153.0,0.0002504,2]
[374140373,1753228258010,-153.0,0.0002504,2]
[374140374,1753228258020,-153.0,0.0002504,2]
[374140375,1753228258029,-153.0,0.0002504,2]
[374140376,1753228258039,-1000.0,0.0002504,5]
[374140377,1753228258049,-550.65288561,0.00025058,2]
[374140378,1753228258059,-158.85678577,0.00025058,2]
[374140379,1753228258068,-223.0315306,0.00025059,2]
[374140380,1753228258077,-1000.0,0.0002506,5]
[374140381,1753228258087,-3202.65456407,0.00025072,12]
[374140382,1753228258097,-1000.0,0.0002508,5]
[374140383,1753228258200,-1129.48093,0.0002508,5]
[374140384,1753228258209,-1000.0,0.000251,5]
[374140385,1753228258218,-1000.0,0.000251,5]
[374140386,1753228258228,-1016.0,0.000251,2]
[374140387,1753228258237,-475.90439971,0.000251,3]
[374140388,1753228258247,-500.0,0.0002511,2]
[374140389,1753228258256,-2200.0,0.0002511,2]
[374140390,1753228258266,-178.05580907,0.00025124,2]
[374140391,1753228258275,-1752.0,0.00025137,3]
[374140392,1753228258284,-324.0,0.00025137,3]
[374140393,1753228258294,-324.0,0.00025137,3]
[374140394,1753228258303,-324.0,0.00025137,3]
[374140395,1753228258312,-151.0,0.00025141,7]
[374140396,1753228258321,-207.463236,0.00025141,7]
[374140397,1753228258331,-151.0,0.00025154,2]
[374140398,1753228258340,-151.0,0.00025154,7]
[374140399,1753228258349,-151.0,0.00025154,7]
[374140400,1753228258358,-151.0,0.00025154,7]
[374140401,1753228258368,-154.168874,0.00025154,7]
[374140402,1753228258377,-154.131636,0.00025154,7]
[374140403,1753228258386,-151.0,0.00025154,7]
[374140404,1753228258395,-151.0,0.00025154,7]
[374140405,1753228258404,-151.0,0.00025154,7]
[374140406,1753228258413,-151.0,0.00025154,7]
[374140407,1753228258422,-151.0,0.00025154,7]
[374140408,1753228258431,-151.0,0.00025154,7]
[374140409,1753228258440,-151.0,0.00025154,7]
[374140410,1753228258450,-151.0,0.00025154,7]
[374140411,1753228258459,-151.0,0.00025154,7]
[374140412,1753228258468,-151.0,0.00025154,7]
[374140413,1753228258477,-220.261111,0.00025154,7]
[374140414,1753228258486,-151.0,0.00025154,7]
[374140415,1753228258495,-151.0,0.00025154,7]
[374140416,1753228258504,-151.0,0.00025154,7]
[374140417,1753228258513,-151.0,0.00025154,7]
[374140418,1753228258523,-151.0,0.00025154,7]
[374140419,1753228258533,-151.0,0.00025154,7]
[374140420,1753228258543,-151.0,0.00025154,7]
[374140421,1753228258552,-151.0,0.00025154,7]
[374140422,1753228258561,-151.0,0.00025154,7]
[374140423,1753228258570,-151.0,0.00025154,7]
[374140424,1753228258578,-151.0,0.00025154,7]
[374140425,1753228258587,-151.0,0.00025154,7]
[374140426,1753228258596,-186.260674,0.00025154,7]
[374140427,1753228258606,-151.0,0.00025154,7]
[374140428,1753228258618,-151.0,0.00025154,7]
[374140429,1753228258627,-151.0,0.00025154,7]
[374140430,1753228258637,-151.0,0.00025154,7]
[374140431,1753228258646,-151.0,0.00025154,7]
[374140432,1753228258656,-151.0,0.00025154,7]
[374140433,1753228258668,-197.97271,0.00025154,7]